Cogmind - Beta 11 X8 @@@ ROGUE MODE // 2021.11.03 @ 00:19:27 Player: Runia Result: Destroyed by G-34 Mercenary with Small Laser Performance ------------- Evolutions (0) 0 Regions Visited (4) 800 Robots Destroyed (20) 100 Value Destroyed (464) 464 Prototype IDs (27) 540 Alien Tech Used (0) 0 Bonus (325) 325 TOTAL SCORE: 2229 Bonus ------- Follower Combat Kills 25 Aligned with FarCom 300 Cogmind --------- Core Integrity 0/250 Matter 300/300 Energy 250/250 System Corruption 0% Temperature Cool (6) Movement Treading (160) Location -9/Mines Parts ------- > --- POWER (1) -------- Ion Engine > --- PROPULSION (2) --- Light Treads Light Treads > --- UTILITY (2) ------ Large Storage Unit Structural Scanner > --- WEAPON (2) ------- Light Assault Rifle Light Assault Rifle > --- INVENTORY (15) --- Light Treads Light Treads Light Treads High-capacity Storage Unit High-capacity Matter Pod (198) Signal Interpreter Hacking Suite Light Assault Rifle Light Assault Rifle Light Assault Rifle Light Assault Rifle Rocket Launcher Peak State ------------ > --- POWER ------------ Ion Engine > --- PROPULSION ------- Light Treads Light Treads > --- UTILITY ---------- Large Storage Unit Structural Scanner > --- WEAPON ----------- Light Assault Rifle Rocket Launcher > --- INVENTORY -------- Light Treads Light Treads Light Treads High-capacity Storage Unit High-capacity Matter Pod Signal Interpreter Hacking Suite Light Assault Rifle Light Assault Rifle Light Assault Rifle Light Assault Rifle Light Assault Rifle [Rating: 9] Favorites ----------- Power Ion Engine Engine Ion Engine Propulsion Light Treads Treads Light Treads Leg Aluminum Leg Utility Structural Scanner Device Structural Scanner Storage Large Storage Unit Weapon Light Assault Rifle Energy Gun EM Pulse Gun Ballistic Gun Light Assault Rifle Launcher Rocket Launcher Build | -11 -10 -10 -10 -9 ------- Run | Scr Mat Min Exi Min Slots Evolved . | . . . . . Power . | . . . . . Propulsion . | . . . . . Utility . | . . . . . Weapon . | . . . . . Parts Attached 18 | . 14 . 1 3 Power 1 | . 1 . . . Engine 1 | . 1 . . . Core . | . . . . . Reactor . | . . . . . Propulsion 3 | . 3 . . . Treads 3 | . 3 . . . Leg . | . . . . . Wheel . | . . . . . Hover . | . . . . . Flight . | . . . . . Utility 4 | . 2 . . 2 Device 2 | . 1 . . 1 Storage 2 | . 1 . . 1 Processor . | . . . . . Hackware . | . . . . . Protection . | . . . . . Artifact . | . . . . . Weapon 10 | . 8 . 1 1 Energy Gun 3 | . 3 . . . Energy Cannon . | . . . . . Ballistic Gun 6 | . 5 . . 1 Ballistic Cannon . | . . . . . Launcher 1 | . . . 1 . Special Weapon . | . . . . . Impact Weapon . | . . . . . Slashing Weapon . | . . . . . Piercing Weapon . | . . . . . Special Melee Weapon . | . . . . . Unidentified Prototypes . | . . . . . Parts Lost 1 | . 1 . . . Power . | . . . . . Propulsion . | . . . . . Utility . | . . . . . Weapon 1 | . 1 . . . Highest Loss Streak 1 | . 1 . . . Average Slot Usage (%) 99 | . 98 100 100 100 Engine 14 | . 14 14 14 14 Treads 28 | . 28 28 28 28 Device 13 | . 12 14 14 14 Storage 14 | . 14 14 14 14 Energy Gun 10 | . 21 . . . Ballistic Gun 17 | . 6 28 27 27 Naked Turns . | . . . . . Heaviest Build 31 | 14 30 28 31 28 Greatest Support 40 | 20 40 40 40 40 Greatest Overweight (x) . | . . . . . Average Overweight (x) . | . . . . . Largest Inventory Capacity 15 | 8 15 15 15 15 Average Capacity 14 | 8 13 15 15 15 Most Carried 13 | 5 13 13 13 12 Average Carried 9 | 5 6 12 12 12 Final Capacity 15 | 8 15 15 15 15 Final Carried 13 | 4 11 13 12 12 Class Distribution -------------------- 100% | Mutant Dominant Class ---------------- Mutant | -10/Materials Mutant | -10/Mines Mutant | -10/Exiles Mutant | -9/Mines Resources | -11 -10 -10 -10 -9 ----------- Run | Scr Mat Min Exi Min Matter Collected 435 | 200 137 43 . 55 Remotely . | . . . . . Salvage Created 652 | . 536 58 . 58 Parts 37 | . 30 1 . 6 Haulers Intercepted 2 | . 2 . . . Recyclers Shooed 2 | . 1 1 . . Parts Field Recycled . | . . . . . Retrieved Matter . | . . . . . Parts Self-Destructed . | . . . . . Prevented . | . . . . . Kills | -11 -10 -10 -10 -9 ------- Run | Scr Mat Min Exi Min Combat Hostiles Destroyed 14 | . 9 1 . 4 Guns 10 | . 8 1 . 1 AOE 4 | . 1 . . 3 Classes Destroyed 6 | . 6 . . . Worker 1 | . 1 . . . Hauler 2 | . 2 . . . Operator 1 | . 1 . . . Watcher 2 | . 2 . . . Swarmer 6 | . 3 . . 3 Grunt 8 | . 6 1 . 1 Best Kill Streak 3 | . 3 1 . 3 Combat Bots Only 3 | . 3 1 . 3 Max Kills in Single Turn 3 | . 2 1 . 3 Gunslinging 1 | . 1 . . . Exploded 3 | . 1 . . 3 Melee . | . . . . . Uniques/NPCs Destroyed . | . . . . . Combat | -11 -10 -10 -10 -9 -------- Run | Scr Mat Min Exi Min Damage Taken 690 | . 499 76 . 115 Core 255 | . 188 31 . 36 Absorbed by Shields . | . . . . . Core Remaining (%) 100 | 100 . . . . Volleys Fired 70 | . 55 9 1 5 Largest 2 | . 2 2 1 2 Hottest 90 | . 90 40 33 40 Shots Fired 137 | . 109 18 1 9 Gun 135 | . 109 18 . 8 Cannon . | . . . . . Launcher 2 | . . . 1 1 Special . | . . . . . Kinetic 52 | . 26 18 . 8 Thermal 1 | . 1 . . . Explosive 2 | . . . 1 1 Electromagnetic 82 | . 82 . . . Robot Hit Streak 11 | . 6 11 . 8 Robot Miss Streak 4 | . 4 2 . . Penetration Max . | . . . . . Secondary Targets 2 | . 2 . . . Max Gunslinging Chain 1 | . 1 . . . Shots Hit Robots 83 | . 64 11 . 8 Core Hits 37 | . 26 4 . 7 Critical Kills . | . . . . . Critical Parts Destroyed . | . . . . . Critical Strikes 1 | . 1 . . . Corrupt 1 | . 1 . . . Melee Attacks . | . . . . . Impact . | . . . . . Slashing . | . . . . . Piercing . | . . . . . Sneak Attacks . | . . . . . Combat Hostiles . | . . . . . Follow-up Attacks . | . . . . . Damage Inflicted 1311 | . 1011 84 . 216 Guns 1014 | . 860 84 . 70 Cannons . | . . . . . Explosions 284 | . 151 . . 133 Melee . | . . . . . Ramming 13 | . . . . 13 Kinetic 289 | . 135 84 . 70 Thermal 151 | . 151 . . . Explosive 133 | . . . . 133 Electromagnetic 725 | . 725 . . . Impact . | . . . . . Slashing . | . . . . . Piercing . | . . . . . Highest Corruption . | . . . . . Average Corruption . | . . . . . Corruption Purged . | . . . . . Overload Shots . | . . . . . Overflow Damage . | . . . . . Projectiles . | . . . . . Explosions . | . . . . . Melee . | . . . . . Knockbacks . | . . . . . Impact . | . . . . . Kinetic . | . . . . . Secondary . | . . . . . Self-Inflicted Damage 168 | . 150 . . 18 Shots 5 | . 4 . . 1 Rammed 4 | . . . . 4 Targets Rammed 4 | . . . . 4 Kicked . | . . . . . Crushed . | . . . . . Highest Temperature 186 | . 186 18 . 24 Average Temperature 56 | . 60 10 . 11 Received Heat Transfer 279 | . 180 45 . 54 Siege Activations . | . . . . . Robots Corrupted . | . . . . . Combat Hostiles . | . . . . . Parts Fried 1 | . 1 . . . Impact Corruptions . | . . . . . Robots Melted . | . . . . . Combat Hostiles . | . . . . . Parts Melted . | . . . . . Heat Transferred 250 | . 250 . . . Parts Sabotaged . | . . . . . Parts Stolen . | . . . . . Parts Stripped . | . . . . . Power Chain Reactions 4 | . 4 . . . Missiles Intercepted . | . . . . . Alert | -11 -10 -10 -10 -9 ------- Run | Scr Mat Min Exi Min Peak Influence 226 | . 226 63 . 109 Initial . | . . . . . Average 75 | . 83 40 . 71 Maximum Alert Level 1 | . 1 . . . Low Security (%) 95 | 100 92 100 . 100 Level 1 4 | . 7 . . . Level 2 . | . . . . . Level 3 . | . . . . . Level 4 . | . . . . . Level 5 . | . . . . . High Security . | . . . . . Max Security . | . . . . . Squads Dispatched 3 | . 2 . . 1 Investigation 2 | . 2 . . . Extermination . | . . . . . Reinforcement 1 | . . . . 1 Assault . | . . . . . Garrison . | . . . . . Intercept . | . . . . . Construction Impeded 1 | . . . . 1 Haulers Reinforced . | . . . . . Active Scanning Responses . | . . . . . Cargo Convoy Interrupts . | . . . . . Stealth | -11 -10 -10 -10 -9 --------- Run | Scr Mat Min Exi Min Distress Signals 2 | . 2 . . . Communications Jammed . | . . . . . Distress Signals . | . . . . . Times Spotted 27 | . 21 2 . 4 Peak Tracking Total 9 | . 5 2 9 3 Tactical Retreats . | . . . . . Traps | -11 -10 -10 -10 -9 ------- Run | Scr Mat Min Exi Min Traps Triggered . | . . . . . Indirectly . | . . . . . Trap Hack Attempts . | . . . . . Triggered . | . . . . . Disarmed . | . . . . . Reprogrammed . | . . . . . Reused . | . . . . . Traps Extracted . | . . . . . Installed . | . . . . . Triggered 1 | . . . . 1 Machines | -11 -10 -10 -10 -9 ---------- Run | Scr Mat Min Exi Min Machines Disabled 5 | . 2 2 1 . Max in Single Turn 1 | . 1 . 1 . Machines Sabotaged . | . . . . . Garrisons Compromised . | . . . . . Overloaded Fab Kills . | . . . . . Hacking | -11 -10 -10 -10 -9 --------- Run | Scr Mat Min Exi Min Machines Accessed 12 | . 9 . 2 1 Terminals 9 | . 8 . . 1 Fabricators . | . . . . . Repair Stations . | . . . . . Recycling Units 1 | . 1 . . . Scanalyzers . | . . . . . Garrison Access . | . . . . . Total Hacks 31 | . 25 . 2 4 Successful 18 | . 14 . 2 2 Failed 13 | . 11 . . 2 Catastrophic 3 | . 2 . . 1 Database Lockouts . | . . . . . Manual 14 | . 11 . 1 2 Terminals 28 | . 24 . . 4 Fabricators . | . . . . . Repair Stations . | . . . . . Recycling Units 1 | . 1 . . . Scanalyzers . | . . . . . Garrison Access . | . . . . . Terminal Hacks 17 | . 13 . 2 2 Record 1 | . . . 1 . Robot Analysis 2 | . 2 . . . Prototype ID Bank 3 | . 3 . . . Level Access Points 1 | . . . . 1 Terminal Index 1 | . 1 . . . Locate Traps 2 | . 2 . . . Hauler Manifests 3 | . 3 . . . Zone Layout 3 | . 2 . . 1 EX-Prototype ID Bank 1 | . . . 1 . Fabricator Hacks . | . . . . . Repair Station Hacks . | . . . . . Recycling Unit Hacks . | . . . . . Scanalyzer . | . . . . . Garrison Access Hacks . | . . . . . Unauthorized Hacks 1 | . 1 . . . Terminals . | . . . . . Fabricators . | . . . . . Repair Stations . | . . . . . Recycling Units 1 | . 1 . . . Tunnel 1 | . 1 . . . Scanalyzers . | . . . . . Garrison Access . | . . . . . Data Cores Recovered 1 | . 1 . . . Used 1 | . 1 . . . Hacking Detections 7 | . 7 . . . Full Trace Events . | . . . . . Feedback Events . | . . . . . Feedback Blocked . | . . . . . Robot Schematics Acquired . | . . . . . Robots Built . | . . . . . Authchips . | . . . . . Time . | . . . . . Total Robot Build Rating . | . . . . . Part Schematics Acquired . | . . . . . Parts Built . | . . . . . Authchips . | . . . . . Time . | . . . . . Total Part Build Rating . | . . . . . Parts Repaired . | . . . . . Time . | . . . . . Parts Recycled . | . . . . . Recycled Matter . | . . . . . Retrieved Matter . | . . . . . Retrieved Components . | . . . . . Parts Scanalyzed . | . . . . . Part Schematics Acquired . | . . . . . Parts Damaged . | . . . . . Bothacking | -11 -10 -10 -10 -9 ------------ Run | Scr Mat Min Exi Min Used RIF Installer . | . . . . . Robots Hacked . | . . . . . Non-combat . | . . . . . Combat . | . . . . . Robot Hacks Applied . | . . . . . Relay Couplers Released . | . . . . . Robots Rewired . | . . . . . Allies Hacked . | . . . . . Hacks Repelled . | . . . . . Allies | -11 -10 -10 -10 -9 -------- Run | Scr Mat Min Exi Min Total Allies 2 | . . 2 . . Largest Group 2 | . . 2 . . Highest-Rated Group 50 | . . 50 . . Highest-Rated Ally 31 | . . 31 . . Total Orders . | . . . . . Ally Attacks 8 | . . 8 . . Total Damage 85 | . . 85 . . Kills 1 | . . 1 . . Allies Corrupted . | . . . . . Allies Melted . | . . . . . Intel | -11 -10 -10 -10 -9 ------- Run | Scr Mat Min Exi Min Robot Analysis Total 2 | . 2 . . . Derelict Logs Recovered . | . . . . . Drone Launches . | . . . . . Drone Recoveries . | . . . . . Exploration | -11 -10 -10 -10 -9 ------------- Run | Scr Mat Min Exi Min Turns Passed 2425 | 1 1212 231 694 287 Spaces Moved 1297 | 1 631 129 432 104 Core . | . . . . . Treads 1296 | . 631 129 432 104 Legs 1 | 1 . . . . Wheels . | . . . . . Hover . | . . . . . Flight . | . . . . . Fastest Speed 120 | 120 160 160 160 160 Average Speed 159 | 120 160 160 160 160 Slowest Speed 160 | 120 160 160 160 160 Overloaded Moves . | . . . . . Propulsion Burnouts . | . . . . . Robots Hopped . | . . . . . Cave-ins Triggered . | . . . . . Exploration Rate (%) 43 | 2 93 33 71 20 Regions Visited 4 Branch Regions 3 Pre-discovered Areas 2 | . 1 . 1 . Known Exits Taken . | . . . . . Unknown Exits Taken 4 | 1 1 1 1 . Scrap Searched . | . . . . . Spaces Dug . | . . . . . Terrain Destroyed 54 | . 35 . 8 11 Melee . | . . . . . Projectile . | . . . . . AOE 54 | . 35 . 8 11 Terrain Rammed . | . . . . . Walls Destroyed . | . . . . . Machines Disabled . | . . . . . Actions | -11 -10 -10 -10 -9 --------- Run | Scr Mat Min Exi Min Total 1520 | 2 732 139 434 213 Wait 102 | . 5 . . 97 Move 1293 | . 630 128 431 104 Hop . | . . . . . Pick Up 20 | . 18 2 . . Fast Attach . | . . . . . Attach 8 | . 8 . . . Detach . | . . . . . Swap 10 | . 6 . 1 3 Drop 13 | 2 10 . 1 . Fire 70 | . 55 9 1 5 Melee . | . . . . . Ram . | . . . . . Kick . | . . . . . Crush 4 | . . . . 4 Escape Stasis . | . . . . . Rewire . | . . . . . Trap . | . . . . . Miscellaneous . | . . . . . Route ------- -11/Scrapyard -10/Materials (discovered 5 exits: [*Mat x3] / [*Min x2]) -10/Mines -10/Exiles (discovered 2 exits: *Min x2) -9/Mines (discovered 2 exits: *Mat x2) History --------- Turn | Location | Event 2 | -11/Scrapyard | Discovered new exit (range 0) 2 | -11/Scrapyard | Entered Materials 34 | -10/Materials | Discovered new exit (range 16) 117 | -10/Materials | Discovered new exit (range 8) 284 | -10/Materials | Discovered new exit (range 16) 306 | -10/Materials | Build established: Mutant 317 | -10/Materials | Core integrity fell below 50% 518 | -10/Materials | Discovered new exit (range 16) 1101 | -10/Materials | Discovered new exit (range 14) 1214 | -10/Materials | Entered Mines 1261 | -10/Mines | Received a Rocket Launcher from a helpful Derelict 1300 | -10/Mines | Core integrity fell below 20% 1437 | -10/Mines | Deemed a non-threat by the Exiles lab entrance 1437 | -10/Mines | Discovered new exit (range 6) 1445 | -10/Mines | Entered Exiles 1484 | -10/Exiles | Met 8R-AWN 1511 | -10/Exiles | Met EX-HEX 1573 | -10/Exiles | Met EX-DEC 1583 | -10/Exiles | Learned location of Zion (-7) 1617 | -10/Exiles | Met EX-BIN 1636 | -10/Exiles | Aligned with FarCom system 1637 | -10/Exiles | Given EX-Vault access code 1676 | -10/Exiles | Opened EX-Vault 1711 | -10/Exiles | Warned to stay clear of 0b10 Research branches 1891 | -10/Exiles | Discovered new exit (range 14) 2081 | -10/Exiles | Discovered new exit (range 11) 2108 | -10/Exiles | Attacked by the Exiles 2139 | -10/Exiles | Entered Mines 2158 | -9/Mines | Assembled infested the area 2392 | -9/Mines | Discovered new exit (range 14) 2392 | -9/Mines | Identified exit to Materials 2426 | -9/Mines | Destroyed by G-34 Mercenary with Small Laser Last Messages --------------- Downloaded map data. >>Access(Main) Found 2 level access points to Materials: (9,21) (65,69) Map updated. 02395_ U-05 Engineer lays Concrete. 02395_ K-01 Serf cleans the Seismic Survey Station. 02397_ U-05 Engineer lays Concrete. 02398_ U-05 Engineer builds a Wall. 02402_ Slammed into K-01 Serf. 02402_ U-05 Engineer lays Concrete. 02403_ U-05 Engineer builds a Wall. 02405_ Slammed into U-05 Engineer. 02406_ ALERT: Construction progress impeded, dispatching reinforcements to local area. 02418_ G-34 Mercenary destroyed. 02423_ Slammed into G-47 Trooper. 02424_ Acquired 46 matter. 02425_ Slammed into G-34 Mercenary. Map ----- +----------------------------------------------------+ | | | | | | | | | ????????????????????????????????????? | | ????????????????????????????????????? | | ????????????????????????????????????? | | ????????????????????????????????????? | | ????????????????????????????????????? | | ????????????????????????????????????? | | ????????????????????????????????????? | | ????????????????????????????????????? | | ????????????????????????????????????? | | ????????????????????????????????????? | | ????????????????????????????????????? | | ????????????????????????????????????? | | ????????????????????????????????????? | | ????????????????????????????????????? | | ????????????????????????????????????? | | ????????????????????????????????????? | | ????????????????????????????????????? | | ?????###????????????????????????????? | | ?????###????????????????????????????? | | ?????## ######?######## #???????? | | ?????## u######????????# ???????? | | ?????## tkkg@g*####??????# ???????? | | ?????## rur###g####??????# ???????? | | ?????## ### ##??????# ???????? | | ?????## ##### ##?????## ???????? | | ?????########### ##????## ???????? | | ??????????????## ##???## ???????? | | ??????????????## ##??## ???????? | | ??############## ##### ???????? | | ??############## ##### ???????? | | ?### #### ### #???????? | | ?### #### """ ### ##???????? | | ?## #### """ #### ##????????? | | ?### #### """ #### ##?????????? | | ?## ###T #### ##?????????? | | ?### ####### #### ##?????????? | | ?## ### ######## # " "###?????????? | | ?## ### ###### " "###?????????? | | ?##### ### ###?????????? | | ?##### ### ##?????????? | | ????## ### " ##?????????? | | ????##""" ### ##?????????? | | ????##""" # # ##?????????? | | ????##""" ## # ##?????????? | | ????##""" ## # " % ####???????? | | ????## ## ## ###???????? | +----------------------------------------------------+ Best States ------------- Heat Dissipation 25 Energy Generation 10 Energy Capacity 250 Matter Stores 300 Matter Capacity 300 Sight Range 16 Terrain Scan Density 10 Evasion (%) 40 Recoil Reduction 2 Item Schematics ----------------- None Robot Schematics ------------------ None Fabricated ------------ Nothing Alien Tech Used ----------------- None Achievements -------------- None Challenges ------------ None Game ------ Seed PlasmaZioniteRedirector Manual? 0 Play Time 00:13:24 Cumulative 430.0 hours Start 2021.11.03 @ 00:07:45 End 2021.11.03 @ 00:19:27 Sessions 1 Manual Loads 0 Difficulty Rogue Special Mode None Game No. 430 Rogue 430 Adventurer 0 Explorer 0 Win Type - Total 8 Types 7/0/0/1/0/0/0/0/0 Lore% 80 Gallery% 92 Achievement% 69 Wizard Run 0 Options --------- ASCII 0 Keyboard 0 Movement Mouse Keybinds 1 Fullscreen 2 Font 24/Smallcaps Map View 76x50 Tactical HUD 1 Map Filters NONE Filters NONE Steam 1 RUN: 4fba6b1a-ed47-47b4-abc7-c9bb2c3fb371